[Event "Titled Tuesday Blitz August 3 2021"]
[White "Golubev, Mikhail"]
[Black "Moon_stone123"]
[WhiteFideId "14100983"]
[WhiteElo "2374"]
[BlackElo "2432"]
[Result "1/2-1/2"]
[Round "10"]
[TimeControl "180+1"]
[Date "2021.08.03"]
[WhiteClock "0:00:07"]
[BlackClock "0:00:03"]

1. e4 {[%clk 0:03:00]}  c6 {[%clk 0:02:59]} 2. d4 {[%clk 0:03:01]}  d5 {[%clk 0:02:59]} 3. e5 {[%clk 0:03:01]}  Bf5 {[%clk 0:02:58]} 4. h4 {[%clk 0:03:01]}  h5 {[%clk 0:02:58]} 5. c4 {[%clk 0:03:01]}  e6 {[%clk 0:02:57]} 6. Nc3 {[%clk 0:03:01]}  Nd7 {[%clk 0:02:40]} 7. Nge2 {[%clk 0:02:54]}  Ne7 {[%clk 0:02:39]} 8. Ng3 {[%clk 0:02:45]}  Bg6 {[%clk 0:02:38]} 9. cxd5 {[%clk 0:02:31]}  exd5 {[%clk 0:02:36]} 10. Be2 {[%clk 0:02:31]}  Nf5 {[%clk 0:02:34]} 11. Nxf5 {[%clk 0:02:25]}  Bxf5 {[%clk 0:02:35]} 12. Bxh5 {[%clk 0:02:23]}  g6 {[%clk 0:02:34]} 13. Bg5 {[%clk 0:02:14]}  Be7 {[%clk 0:02:32]} 14. Bxe7 {[%clk 0:01:59]}  Qxe7 {[%clk 0:02:33]} 15. Be2 {[%clk 0:01:59]}  Rxh4 {[%clk 0:02:32]} 16. Rxh4 {[%clk 0:01:55]}  Qxh4 {[%clk 0:02:33]} 17. Qd2 {[%clk 0:01:55]}  O-O-O {[%clk 0:02:25]} 18. g3 {[%clk 0:01:46]}  Qh2 {[%clk 0:02:18]} 19. Rc1 {[%clk 0:01:31]}  Kb8 {[%clk 0:02:08]} 20. Nd1 {[%clk 0:01:31]}  f6 {[%clk 0:01:57]} 21. Qf4 {[%clk 0:01:04]}  fxe5 {[%clk 0:01:55]} 22. dxe5 {[%clk 0:01:05]}  Be6 {[%clk 0:01:56]} 23. Kd2 {[%clk 0:00:56]}  Qh8 {[%clk 0:01:54]} 24. Ne3 {[%clk 0:00:49]}  Nxe5 {[%clk 0:01:50]} 25. Rh1 {[%clk 0:00:46]}  Qg7 {[%clk 0:01:43]} 26. Rh7 {[%clk 0:00:44]}  Qxh7 {[%clk 0:01:25]} 27. Qxe5+ {[%clk 0:00:44]}  Qc7 {[%clk 0:01:24]} 28. Qxe6 {[%clk 0:00:45]}  Qa5+ {[%clk 0:01:22]} 29. Kc2 {[%clk 0:00:40]}  Qxa2 {[%clk 0:01:10]} 30. Qxg6 {[%clk 0:00:38]}  Qa4+ {[%clk 0:01:09]} 31. Kc1 {[%clk 0:00:33]}  d4 {[%clk 0:00:59]} 32. Nc4 {[%clk 0:00:33]}  Qa1+ {[%clk 0:00:49]} 33. Qb1 {[%clk 0:00:32]}  Qxb1+ {[%clk 0:00:48]} 34. Kxb1 {[%clk 0:00:32]}  d3 {[%clk 0:00:39]} 35. Bd1 {[%clk 0:00:32]}  b5 {[%clk 0:00:36]} 36. Ne5 {[%clk 0:00:32]}  Kc7 {[%clk 0:00:36]} 37. Kc1 {[%clk 0:00:24]}  c5 {[%clk 0:00:35]} 38. Kd2 {[%clk 0:00:22]}  c4 {[%clk 0:00:34]} 39. b3 {[%clk 0:00:21]}  cxb3 {[%clk 0:00:27]} 40. Bxb3 {[%clk 0:00:20]}  a5 {[%clk 0:00:28]} 41. g4 {[%clk 0:00:18]}  a4 {[%clk 0:00:28]} 42. Bf7 {[%clk 0:00:17]}  b4 {[%clk 0:00:23]} 43. g5 {[%clk 0:00:18]}  b3 {[%clk 0:00:23]} 44. Nc4 {[%clk 0:00:15]}  Kd7 {[%clk 0:00:15]} 45. g6 {[%clk 0:00:14]}  Ke7 {[%clk 0:00:15]} 46. Na3 {[%clk 0:00:14]}  Kf6 {[%clk 0:00:15]} 47. Nb1 {[%clk 0:00:13]}  Rc8 {[%clk 0:00:13]} 48. Kxd3 {[%clk 0:00:13]}  Rc1 {[%clk 0:00:11]} 49. Nc3 {[%clk 0:00:11]}  b2 {[%clk 0:00:10]} 50. Ba2 {[%clk 0:00:11]}  Ra1 {[%clk 0:00:11]} 51. Bb1 {[%clk 0:00:11]}  a3 {[%clk 0:00:11]} 52. Bc2 {[%clk 0:00:06]}  a2 {[%clk 0:00:08]} 53. Nxa2 {[%clk 0:00:06]}  Rxa2 {[%clk 0:00:08]} 54. Kc3 {[%clk 0:00:06]}  Kg7 {[%clk 0:00:03]} 55. Kb3 {[%clk 0:00:06]}  Ra1 {[%clk 0:00:02]} 56. Kxb2 {[%clk 0:00:06]}  Rf1 {[%clk 0:00:03]} 57. Kb3 {[%clk 0:00:06]}  Rxf2 {[%clk 0:00:03]} 58. Kc3 {[%clk 0:00:07]}  Rxc2+ {[%clk 0:00:03]} 59. Kxc2 {[%clk 0:00:07]}  Kxg6 {[%clk 0:00:03]} 1/2-1/2


[Site "https://www.chess.com"]

[Event "Titled Tuesday Blitz August 3 2021"]
[White "Grinblat, Dmitry"]
[Black "Politov, Pavel Y."]
[WhiteFideId "4163257"]
[BlackFideId "24110515"]
[WhiteElo "2466"]
[BlackElo "2090"]
[Result "1-0"]
[Round "10"]
[TimeControl "180+1"]
[Date "2021.08.03"]
[WhiteClock "0:00:50"]
[BlackClock "0:00:05"]

1. d4 {[%clk 0:03:00]}  Nf6 {[%clk 0:02:59]} 2. Nf3 {[%clk 0:03:01]}  g6 {[%clk 0:02:59]} 3. g3 {[%clk 0:03:00]}  Bg7 {[%clk 0:02:59]} 4. Bg2 {[%clk 0:03:00]}  d6 {[%clk 0:03:00]} 5. O-O {[%clk 0:03:01]}  O-O {[%clk 0:03:01]} 6. c4 {[%clk 0:03:01]}  Nc6 {[%clk 0:03:01]} 7. Nc3 {[%clk 0:03:01]}  a6 {[%clk 0:03:02]} 8. Re1 {[%clk 0:02:59]}  Rb8 {[%clk 0:02:55]} 9. Rb1 {[%clk 0:02:59]}  Bd7 {[%clk 0:02:46]} 10. h3 {[%clk 0:02:56]}  b5 {[%clk 0:02:40]} 11. cxb5 {[%clk 0:02:57]}  axb5 {[%clk 0:02:41]} 12. b4 {[%clk 0:02:57]}  Re8 {[%clk 0:02:31]} 13. d5 {[%clk 0:02:39]}  Ne5 {[%clk 0:02:24]} 14. Nxe5 {[%clk 0:02:36]}  dxe5 {[%clk 0:02:25]} 15. Bb2 {[%clk 0:02:31]}  e6 {[%clk 0:01:50]} 16. e4 {[%clk 0:01:55]}  exd5 {[%clk 0:01:41]} 17. Nxd5 {[%clk 0:01:52]}  Nxd5 {[%clk 0:01:40]} 18. exd5 {[%clk 0:01:53]}  Qe7 {[%clk 0:01:12]} 19. Qb3 {[%clk 0:01:50]}  Rbd8 {[%clk 0:01:06]} 20. Rbc1 {[%clk 0:01:46]}  Bf5 {[%clk 0:01:04]} 21. Rc5 {[%clk 0:01:44]}  Rb8 {[%clk 0:00:50]} 22. g4 {[%clk 0:01:30]}  Bc8 {[%clk 0:00:40]} 23. f4 {[%clk 0:01:28]}  Qh4 {[%clk 0:00:26]} 24. Rcc1 {[%clk 0:01:20]}  Bxg4 {[%clk 0:00:23]} 25. hxg4 {[%clk 0:01:17]}  Qxg4 {[%clk 0:00:24]} 26. fxe5 {[%clk 0:01:13]}  Bh6 {[%clk 0:00:17]} 27. Rxc7 {[%clk 0:01:04]}  Bf4 {[%clk 0:00:14]} 28. Qh3 {[%clk 0:00:56]}  Qg5 {[%clk 0:00:09]} 29. e6 {[%clk 0:00:49]}  Bxc7 {[%clk 0:00:05]} 30. exf7+ {[%clk 0:00:49]}  Kxf7 {[%clk 0:00:05]} 31. Qxh7+ {[%clk 0:00:49]}  Kf8 {[%clk 0:00:05]} 32. Qg7# {[%clk 0:00:50]} 1-0


[Site "https://www.chess.com"]

[Event "Titled Tuesday Blitz August 3 2021"]
[White "Gunina, Valentina"]
[Black "Ulko, Jaroslav"]
[WhiteFideId "4167570"]
[BlackFideId "4116658"]
[WhiteElo "2399"]
[BlackElo "2304"]
[Result "0-1"]
[Round "10"]
[TimeControl "180+1"]
[Date "2021.08.03"]
[WhiteClock "0:00:06"]
[BlackClock "0:00:37"]

1. d4 {[%clk 0:03:00]}  Nf6 {[%clk 0:02:59]} 2. c4 {[%clk 0:03:00]}  g6 {[%clk 0:02:59]} 3. Nc3 {[%clk 0:03:00]}  Bg7 {[%clk 0:02:59]} 4. e4 {[%clk 0:03:01]}  d6 {[%clk 0:02:59]} 5. Nf3 {[%clk 0:03:01]}  O-O {[%clk 0:03:00]} 6. Be2 {[%clk 0:03:02]}  e5 {[%clk 0:03:00]} 7. O-O {[%clk 0:03:02]}  Nc6 {[%clk 0:02:58]} 8. Be3 {[%clk 0:03:03]}  Ng4 {[%clk 0:02:55]} 9. Bg5 {[%clk 0:03:03]}  f6 {[%clk 0:02:55]} 10. Bh4 {[%clk 0:03:03]}  g5 {[%clk 0:02:52]} 11. Bg3 {[%clk 0:03:04]}  Nh6 {[%clk 0:02:52]} 12. d5 {[%clk 0:02:59]}  Ne7 {[%clk 0:02:34]} 13. Nd2 {[%clk 0:02:59]}  f5 {[%clk 0:02:33]} 14. exf5 {[%clk 0:02:59]}  Bxf5 {[%clk 0:02:28]} 15. Nde4 {[%clk 0:02:59]}  Ng6 {[%clk 0:02:28]} 16. h3 {[%clk 0:02:50]}  Nf4 {[%clk 0:02:25]} 17. Bg4 {[%clk 0:02:51]}  Nxg4 {[%clk 0:02:17]} 18. hxg4 {[%clk 0:02:51]}  Bg6 {[%clk 0:02:17]} 19. f3 {[%clk 0:02:49]}  h5 {[%clk 0:02:16]} 20. Bxf4 {[%clk 0:02:46]}  exf4 {[%clk 0:02:14]} 21. gxh5 {[%clk 0:02:45]}  Bxh5 {[%clk 0:02:12]} 22. Qd2 {[%clk 0:02:39]}  g4 {[%clk 0:01:32]} 23. fxg4 {[%clk 0:02:36]}  Bxg4 {[%clk 0:01:32]} 24. Rxf4 {[%clk 0:02:34]}  Rxf4 {[%clk 0:01:21]} 25. Qxf4 {[%clk 0:02:34]}  Qh4 {[%clk 0:01:01]} 26. Qf2 {[%clk 0:02:06]}  Qh8 {[%clk 0:00:48]} 27. Qg3 {[%clk 0:02:01]}  Bd4+ {[%clk 0:00:39]} 28. Nf2 {[%clk 0:02:00]}  Qg7 {[%clk 0:00:40]} 29. Rf1 {[%clk 0:01:20]}  Rf8 {[%clk 0:00:39]} 30. Nb5 {[%clk 0:01:19]}  Bb6 {[%clk 0:00:37]} 31. b4 {[%clk 0:00:35]}  Be2 {[%clk 0:00:37]} 32. Qxg7+ {[%clk 0:00:10]}  Kxg7 {[%clk 0:00:38]} 33. Rc1 {[%clk 0:00:06]}  Bxf2+ {[%clk 0:00:37]} 34. Kh2 {[%clk 0:00:06]}  Rh8# {[%clk 0:00:37]} 0-1


[Site "https://www.chess.com"]

[Event "Titled Tuesday Blitz August 3 2021"]
[White "Ibrahimli, Murad"]
[Black "Abdusattorov, Nodirbek"]
[WhiteFideId "13410229"]
[BlackFideId "14204118"]
[WhiteElo "2109"]
[BlackElo "2662"]
[Result "0-1"]
[Round "10"]
[TimeControl "180+1"]
[Date "2021.08.03"]
[WhiteClock "0:00:21"]
[BlackClock "0:01:19"]

1. d4 {[%clk 0:03:00]}  f5 {[%clk 0:02:59]} 2. c4 {[%clk 0:03:00]}  Nf6 {[%clk 0:02:59]} 3. Nc3 {[%clk 0:03:00]}  g6 {[%clk 0:03:00]} 4. f3 {[%clk 0:02:57]}  Bg7 {[%clk 0:02:59]} 5. e4 {[%clk 0:02:57]}  fxe4 {[%clk 0:02:59]} 6. fxe4 {[%clk 0:02:56]}  O-O {[%clk 0:02:48]} 7. Nf3 {[%clk 0:02:56]}  c5 {[%clk 0:02:48]} 8. d5 {[%clk 0:02:54]}  d6 {[%clk 0:02:48]} 9. Be2 {[%clk 0:02:53]}  Nbd7 {[%clk 0:02:36]} 10. O-O {[%clk 0:02:50]}  Ng4 {[%clk 0:02:32]} 11. h3 {[%clk 0:02:47]}  Nge5 {[%clk 0:02:32]} 12. Nxe5 {[%clk 0:02:37]}  Nxe5 {[%clk 0:02:31]} 13. Rxf8+ {[%clk 0:02:38]}  Qxf8 {[%clk 0:02:31]} 14. Be3 {[%clk 0:02:37]}  Bh6 {[%clk 0:02:27]} 15. Qd2 {[%clk 0:02:35]}  Bxe3+ {[%clk 0:02:27]} 16. Qxe3 {[%clk 0:02:35]}  Bd7 {[%clk 0:02:28]} 17. Rf1 {[%clk 0:02:35]}  Qg7 {[%clk 0:02:28]} 18. b3 {[%clk 0:02:28]}  a6 {[%clk 0:02:24]} 19. a4 {[%clk 0:02:26]}  g5 {[%clk 0:02:23]} 20. Qg3 {[%clk 0:02:17]}  h6 {[%clk 0:02:14]} 21. a5 {[%clk 0:02:14]}  Ng6 {[%clk 0:02:13]} 22. Na4 {[%clk 0:01:54]}  Nf4 {[%clk 0:02:08]} 23. Bg4 {[%clk 0:01:48]}  h5 {[%clk 0:02:05]} 24. Bf3 {[%clk 0:01:34]}  h4 {[%clk 0:02:03]} 25. Qe1 {[%clk 0:01:32]}  Rf8 {[%clk 0:01:44]} 26. Nb6 {[%clk 0:01:30]}  g4 {[%clk 0:01:36]} 27. hxg4 {[%clk 0:00:37]}  Bxg4 {[%clk 0:01:35]} 28. Qd2 {[%clk 0:00:33]}  Nh3+ {[%clk 0:01:23]} 29. Kh1 {[%clk 0:00:20]}  Rxf3 {[%clk 0:01:20]} 30. gxf3 {[%clk 0:00:21]}  Bxf3+ {[%clk 0:01:19]} 0-1


[Site "https://www.chess.com"]

[Event "Titled Tuesday Blitz August 3 2021"]
[White "Indjic, Aleksandar"]
[Black "Arabidze, Meri"]
[WhiteFideId "911925"]
[BlackFideId "13604040"]
[WhiteElo "2643"]
[BlackElo "2432"]
[Result "1-0"]
[Round "10"]
[TimeControl "180+1"]
[Date "2021.08.03"]
[WhiteClock "0:00:44"]
[BlackClock "0:00:02"]

1. d4 {[%clk 0:03:00]}  Nf6 {[%clk 0:03:00]} 2. Nf3 {[%clk 0:03:01]}  e6 {[%clk 0:03:00]} 3. Bg5 {[%clk 0:02:59]}  Be7 {[%clk 0:02:59]} 4. Nbd2 {[%clk 0:02:58]}  d5 {[%clk 0:02:59]} 5. c3 {[%clk 0:02:58]}  h6 {[%clk 0:02:59]} 6. Bxf6 {[%clk 0:02:57]}  Bxf6 {[%clk 0:02:59]} 7. e4 {[%clk 0:02:58]}  c5 {[%clk 0:02:58]} 8. Bb5+ {[%clk 0:02:56]}  Bd7 {[%clk 0:02:55]} 9. Bxd7+ {[%clk 0:02:53]}  Nxd7 {[%clk 0:02:54]} 10. e5 {[%clk 0:02:53]}  Be7 {[%clk 0:02:54]} 11. O-O {[%clk 0:02:53]}  O-O {[%clk 0:02:50]} 12. Re1 {[%clk 0:02:51]}  Qb6 {[%clk 0:02:48]} 13. Rb1 {[%clk 0:02:51]}  a5 {[%clk 0:02:42]} 14. Re3 {[%clk 0:02:51]}  a4 {[%clk 0:02:39]} 15. a3 {[%clk 0:02:48]}  Rfc8 {[%clk 0:02:37]} 16. Nf1 {[%clk 0:02:43]}  Nf8 {[%clk 0:02:33]} 17. Ng3 {[%clk 0:02:42]}  Ng6 {[%clk 0:02:33]} 18. Nh5 {[%clk 0:02:41]}  cxd4 {[%clk 0:02:24]} 19. Nxd4 {[%clk 0:02:40]}  Bg5 {[%clk 0:02:16]} 20. Re1 {[%clk 0:02:33]}  Rc4 {[%clk 0:02:13]} 21. Qe2 {[%clk 0:02:23]}  Rac8 {[%clk 0:02:03]} 22. Rbd1 {[%clk 0:02:22]}  Be7 {[%clk 0:02:00]} 23. g3 {[%clk 0:02:15]}  Bc5 {[%clk 0:01:59]} 24. Nf3 {[%clk 0:02:12]}  Re4 {[%clk 0:01:55]} 25. Qc2 {[%clk 0:02:08]}  Qc6 {[%clk 0:01:40]} 26. Kg2 {[%clk 0:02:04]}  b5 {[%clk 0:01:21]} 27. h4 {[%clk 0:02:04]}  Bb6 {[%clk 0:01:08]} 28. Qd3 {[%clk 0:02:00]}  Qc4 {[%clk 0:00:56]} 29. Qxc4 {[%clk 0:01:59]}  Rcxc4 {[%clk 0:00:52]} 30. Nd2 {[%clk 0:01:59]}  Rxe1 {[%clk 0:00:52]} 31. Rxe1 {[%clk 0:02:00]}  Rc8 {[%clk 0:00:50]} 32. f4 {[%clk 0:01:44]}  Ne7 {[%clk 0:00:50]} 33. g4 {[%clk 0:01:39]}  d4 {[%clk 0:00:48]} 34. Ne4 {[%clk 0:01:39]}  dxc3 {[%clk 0:00:47]} 35. bxc3 {[%clk 0:01:39]}  Nd5 {[%clk 0:00:42]} 36. Rb1 {[%clk 0:01:38]}  Nxc3 {[%clk 0:00:35]} 37. Nxc3 {[%clk 0:01:38]}  Rxc3 {[%clk 0:00:36]} 38. Rxb5 {[%clk 0:01:38]}  Bc5 {[%clk 0:00:34]} 39. Rb8+ {[%clk 0:01:37]}  Bf8 {[%clk 0:00:33]} 40. f5 {[%clk 0:01:37]}  Rxa3 {[%clk 0:00:31]} 41. fxe6 {[%clk 0:01:31]}  fxe6 {[%clk 0:00:32]} 42. Nf4 {[%clk 0:01:30]}  Ra2+ {[%clk 0:00:30]} 43. Kf3 {[%clk 0:01:29]}  Kf7 {[%clk 0:00:14]} 44. Rb7+ {[%clk 0:01:28]}  Be7 {[%clk 0:00:15]} 45. h5 {[%clk 0:01:27]}  Ke8 {[%clk 0:00:11]} 46. Nxe6 {[%clk 0:01:26]}  a3 {[%clk 0:00:11]} 47. Nxg7+ {[%clk 0:01:24]}  Kd8 {[%clk 0:00:12]} 48. Ne6+ {[%clk 0:01:22]}  Ke8 {[%clk 0:00:11]} 49. Nc7+ {[%clk 0:01:22]}  Kf8 {[%clk 0:00:11]} 50. Nd5 {[%clk 0:01:22]}  Bc5 {[%clk 0:00:10]} 51. Rc7 {[%clk 0:01:18]}  Rf2+ {[%clk 0:00:09]} 52. Ke4 {[%clk 0:01:17]}  a2 {[%clk 0:00:10]} 53. Rc8+ {[%clk 0:01:17]}  Kf7 {[%clk 0:00:10]} 54. Ra8 {[%clk 0:01:17]}  Re2+ {[%clk 0:00:03]} 55. Kd3 {[%clk 0:01:03]}  Rg2 {[%clk 0:00:03]} 56. e6+ {[%clk 0:01:01]}  Kg7 {[%clk 0:00:02]} 57. e7 {[%clk 0:00:58]}  Bxe7 {[%clk 0:00:02]} 58. Nxe7 {[%clk 0:00:58]}  Rxg4 {[%clk 0:00:02]} 59. Rxa2 {[%clk 0:00:55]}  Rg5 {[%clk 0:00:02]} 60. Rh2 {[%clk 0:00:54]}  Kf6 {[%clk 0:00:03]} 61. Nc6 {[%clk 0:00:55]}  Rc5 {[%clk 0:00:02]} 62. Nd4 {[%clk 0:00:54]}  Kg5 {[%clk 0:00:03]} 63. Ke4 {[%clk 0:00:54]}  Kg4 {[%clk 0:00:02]} 64. Ne6 {[%clk 0:00:44]}  Rxh5 {[%clk 0:00:02]} 65. Rg2+ {[%clk 0:00:45]}  Kh3 {[%clk 0:00:02]} 66. Nf4+ {[%clk 0:00:43]}  Kh4 {[%clk 0:00:03]} 67. Rh2+ {[%clk 0:00:43]}  Kg3 {[%clk 0:00:02]} 68. Rxh5 {[%clk 0:00:44]} 1-0


[Site "https://www.chess.com"]

[Event "Titled Tuesday Blitz August 3 2021"]
[White "Jian, Alex"]
[Black "Alavkin, Arseny"]
[WhiteFideId "30901022"]
[BlackFideId "4120612"]
[WhiteElo "2111"]
[BlackElo "2401"]
[Result "0-1"]
[Round "10"]
[TimeControl "180+1"]
[Date "2021.08.03"]
[WhiteClock "0:00:01"]
[BlackClock "0:01:49"]

1. Nf3 {[%clk 0:03:00]}  Nf6 {[%clk 0:02:59]} 2. b3 {[%clk 0:03:01]}  g6 {[%clk 0:03:00]} 3. Bb2 {[%clk 0:03:00]}  Bg7 {[%clk 0:03:01]} 4. e3 {[%clk 0:02:59]}  O-O {[%clk 0:03:01]} 5. Be2 {[%clk 0:02:57]}  d5 {[%clk 0:03:01]} 6. O-O {[%clk 0:02:57]}  c5 {[%clk 0:03:01]} 7. d3 {[%clk 0:02:57]}  Nc6 {[%clk 0:03:01]} 8. Nbd2 {[%clk 0:02:57]}  b6 {[%clk 0:03:01]} 9. c4 {[%clk 0:02:54]}  Bb7 {[%clk 0:03:00]} 10. cxd5 {[%clk 0:02:53]}  Qxd5 {[%clk 0:03:01]} 11. a3 {[%clk 0:02:50]}  Rfd8 {[%clk 0:03:01]} 12. Qc2 {[%clk 0:02:49]}  Rac8 {[%clk 0:03:01]} 13. Rfd1 {[%clk 0:02:47]}  e5 {[%clk 0:02:59]} 14. Bf1 {[%clk 0:02:43]}  Qe6 {[%clk 0:02:58]} 15. g3 {[%clk 0:02:40]}  h6 {[%clk 0:02:54]} 16. Bg2 {[%clk 0:02:39]}  Nd5 {[%clk 0:02:53]} 17. Nc4 {[%clk 0:02:32]}  f5 {[%clk 0:02:52]} 18. Rac1 {[%clk 0:02:22]}  g5 {[%clk 0:02:48]} 19. Re1 {[%clk 0:02:13]}  Nde7 {[%clk 0:02:48]} 20. Qb1 {[%clk 0:02:03]}  Ng6 {[%clk 0:02:47]} 21. Qa1 {[%clk 0:01:54]}  Ba8 {[%clk 0:02:40]} 22. Rcd1 {[%clk 0:01:50]}  g4 {[%clk 0:02:39]} 23. Nfd2 {[%clk 0:01:45]}  Rxd3 {[%clk 0:02:38]} 24. Qb1 {[%clk 0:01:25]}  Rcd8 {[%clk 0:02:37]} 25. e4 {[%clk 0:01:12]}  f4 {[%clk 0:02:35]} 26. Bf1 {[%clk 0:01:12]}  Qd7 {[%clk 0:02:05]} 27. Bxd3 {[%clk 0:00:58]}  Qxd3 {[%clk 0:02:06]} 28. Qxd3 {[%clk 0:00:56]}  Rxd3 {[%clk 0:02:05]} 29. Kf1 {[%clk 0:00:40]}  f3 {[%clk 0:02:05]} 30. Ne3 {[%clk 0:00:39]}  Nd4 {[%clk 0:02:02]} 31. Bxd4 {[%clk 0:00:31]}  exd4 {[%clk 0:02:02]} 32. Nd5 {[%clk 0:00:26]}  Ne5 {[%clk 0:01:56]} 33. a4 {[%clk 0:00:08]}  Bb7 {[%clk 0:01:56]} 34. Nc4 {[%clk 0:00:05]}  Rxb3 {[%clk 0:01:53]} 35. Nd6 {[%clk 0:00:05]}  Ba6+ {[%clk 0:01:53]} 36. Kg1 {[%clk 0:00:04]}  d3 {[%clk 0:01:53]} 37. Nf5 {[%clk 0:00:02]}  c4 {[%clk 0:01:52]} 38. Nd4 {[%clk 0:00:01]}  Rb2 {[%clk 0:01:49]} 0-1


[Site "https://www.chess.com"]

[Event "Titled Tuesday Blitz August 3 2021"]
[White "Karttunen, Mika"]
[Black "Gallegos Diaz, Carlos Alberto"]
[WhiteFideId "502081"]
[BlackFideId "3900886"]
[WhiteElo "2343"]
[BlackElo "2362"]
[Result "1-0"]
[Round "10"]
[TimeControl "180+1"]
[Date "2021.08.03"]
[WhiteClock "0:00:09"]
[BlackClock "0:00:02"]

1. e4 {[%clk 0:03:00]}  d6 {[%clk 0:02:59]} 2. d4 {[%clk 0:03:00]}  Nf6 {[%clk 0:02:59]} 3. f3 {[%clk 0:03:01]}  c6 {[%clk 0:02:58]} 4. Be3 {[%clk 0:03:01]}  Nbd7 {[%clk 0:02:56]} 5. c4 {[%clk 0:03:01]}  e5 {[%clk 0:02:57]} 6. d5 {[%clk 0:03:01]}  Be7 {[%clk 0:02:56]} 7. Nc3 {[%clk 0:03:01]}  O-O {[%clk 0:02:56]} 8. g4 {[%clk 0:02:49]}  Ne8 {[%clk 0:02:51]} 9. Nge2 {[%clk 0:02:42]}  Bh4+ {[%clk 0:02:49]} 10. Ng3 {[%clk 0:02:40]}  g6 {[%clk 0:02:49]} 11. Bd3 {[%clk 0:02:29]}  Nc5 {[%clk 0:02:36]} 12. Bc2 {[%clk 0:02:29]}  f5 {[%clk 0:02:28]} 13. gxf5 {[%clk 0:02:13]}  gxf5 {[%clk 0:02:29]} 14. exf5 {[%clk 0:01:43]}  Bxf5 {[%clk 0:02:22]} 15. Bxf5 {[%clk 0:01:42]}  Rxf5 {[%clk 0:02:21]} 16. Kd2 {[%clk 0:01:42]}  Rf7 {[%clk 0:01:37]} 17. Rg1 {[%clk 0:01:27]}  Kh8 {[%clk 0:01:35]} 18. Kc2 {[%clk 0:01:15]}  Qc8 {[%clk 0:01:03]} 19. Bxc5 {[%clk 0:00:53]}  cxd5 {[%clk 0:00:52]} 20. Be3 {[%clk 0:00:46]}  d4 {[%clk 0:00:48]} 21. Bxd4 {[%clk 0:00:45]}  exd4 {[%clk 0:00:47]} 22. Qxd4+ {[%clk 0:00:45]}  Bf6 {[%clk 0:00:48]} 23. Qd5 {[%clk 0:00:41]}  Rf8 {[%clk 0:00:36]} 24. Nge4 {[%clk 0:00:37]}  Be5 {[%clk 0:00:31]} 25. Rg5 {[%clk 0:00:26]}  Nc7 {[%clk 0:00:27]} 26. Qd3 {[%clk 0:00:22]}  Ne6 {[%clk 0:00:26]} 27. Rh5 {[%clk 0:00:16]}  Nd4+ {[%clk 0:00:19]} 28. Kb1 {[%clk 0:00:14]}  Qd7 {[%clk 0:00:13]} 29. Ng5 {[%clk 0:00:12]}  Qf5 {[%clk 0:00:08]} 30. Rxh7+ {[%clk 0:00:11]}  Kg8 {[%clk 0:00:08]} 31. Qxf5 {[%clk 0:00:10]}  Rxf5 {[%clk 0:00:07]} 32. Nce4 {[%clk 0:00:11]}  Nxf3 {[%clk 0:00:06]} 33. Rh5 {[%clk 0:00:10]}  Nxg5 {[%clk 0:00:06]} 34. Rxg5+ {[%clk 0:00:10]}  Rxg5 {[%clk 0:00:06]} 35. Nxg5 {[%clk 0:00:11]}  Rf8 {[%clk 0:00:06]} 36. Kc2 {[%clk 0:00:10]}  Rf2+ {[%clk 0:00:06]} 37. Kd3 {[%clk 0:00:11]}  Rxb2 {[%clk 0:00:06]} 38. Rf1 {[%clk 0:00:10]}  Rxh2 {[%clk 0:00:05]} 39. Ke4 {[%clk 0:00:10]}  Rxa2 {[%clk 0:00:05]} 40. Kf5 {[%clk 0:00:11]}  Rc2 {[%clk 0:00:03]} 41. Kg6 {[%clk 0:00:11]}  Rxc4 {[%clk 0:00:02]} 42. Rf7 {[%clk 0:00:10]}  Rg4 {[%clk 0:00:02]} 43. Rd7 {[%clk 0:00:09]} 1-0


[Site "https://www.chess.com"]

[Event "Titled Tuesday Blitz August 3 2021"]
[White "LEGENYA1998"]
[Black "Sadovsky, Artem"]
[BlackFideId "4155840"]
[WhiteElo "2385"]
[BlackElo "2442"]
[Result "1-0"]
[Round "10"]
[TimeControl "180+1"]
[Date "2021.08.03"]
[WhiteClock "0:00:07"]
[BlackClock "0:00:01"]

1. d4 {[%clk 0:02:55]}  e6 {[%clk 0:02:57]} 2. Nf3 {[%clk 0:02:55]}  Ke7 {[%clk 0:02:57]} 3. g3 {[%clk 0:02:45]}  b6 {[%clk 0:02:56]} 4. Bg2 {[%clk 0:02:43]}  Bb7 {[%clk 0:02:56]} 5. O-O {[%clk 0:02:42]}  g6 {[%clk 0:02:54]} 6. c4 {[%clk 0:02:42]}  Bg7 {[%clk 0:02:54]} 7. Nc3 {[%clk 0:02:42]}  Nf6 {[%clk 0:02:46]} 8. Qd3 {[%clk 0:02:39]}  Re8 {[%clk 0:02:45]} 9. e4 {[%clk 0:02:39]}  d6 {[%clk 0:02:45]} 10. Qe2 {[%clk 0:02:34]}  Kf8 {[%clk 0:02:42]} 11. e5 {[%clk 0:02:33]}  dxe5 {[%clk 0:02:42]} 12. dxe5 {[%clk 0:02:32]}  Nfd7 {[%clk 0:02:41]} 13. Bf4 {[%clk 0:02:31]}  Qc8 {[%clk 0:02:30]} 14. Qe3 {[%clk 0:02:19]}  Nc6 {[%clk 0:02:21]} 15. Bh6 {[%clk 0:02:19]}  Ne7 {[%clk 0:02:21]} 16. Bxg7+ {[%clk 0:02:15]}  Kxg7 {[%clk 0:02:22]} 17. Rad1 {[%clk 0:02:10]}  Bc6 {[%clk 0:01:59]} 18. Ne4 {[%clk 0:01:47]}  Nf5 {[%clk 0:01:51]} 19. Qf4 {[%clk 0:01:47]}  Qb7 {[%clk 0:01:42]} 20. Rfe1 {[%clk 0:01:46]}  Rad8 {[%clk 0:01:38]} 21. g4 {[%clk 0:01:38]}  Bxe4 {[%clk 0:01:33]} 22. Rxe4 {[%clk 0:01:24]}  Nc5 {[%clk 0:01:33]} 23. Ree1 {[%clk 0:01:23]}  Nd3 {[%clk 0:00:36]} 24. Rxd3 {[%clk 0:01:20]}  Rxd3 {[%clk 0:00:37]} 25. gxf5 {[%clk 0:01:19]}  exf5 {[%clk 0:00:38]} 26. e6 {[%clk 0:01:06]}  Qc8 {[%clk 0:00:25]} 27. exf7 {[%clk 0:01:00]}  Rxf3 {[%clk 0:00:12]} 28. Qd4+ {[%clk 0:00:46]}  Kxf7 {[%clk 0:00:11]} 29. Rxe8 {[%clk 0:00:31]}  Qxe8 {[%clk 0:00:12]} 30. Qd5+ {[%clk 0:00:29]}  Kf6 {[%clk 0:00:12]} 31. Bxf3 {[%clk 0:00:29]}  Qe1+ {[%clk 0:00:10]} 32. Kg2 {[%clk 0:00:29]}  Kg5 {[%clk 0:00:08]} 33. Qd8+ {[%clk 0:00:28]}  Kh6 {[%clk 0:00:08]} 34. Qxc7 {[%clk 0:00:26]}  Qd2 {[%clk 0:00:07]} 35. Qxa7 {[%clk 0:00:22]}  Qg5+ {[%clk 0:00:06]} 36. Kh3 {[%clk 0:00:19]}  Qf4 {[%clk 0:00:03]} 37. Qb7 {[%clk 0:00:18]}  Kg5 {[%clk 0:00:01]} 38. Kg2 {[%clk 0:00:18]}  Kh6 {[%clk 0:00:01]} 39. Qd5 {[%clk 0:00:14]}  Qg5+ {[%clk 0:00:01]} 40. Kf1 {[%clk 0:00:12]}  Qc1+ {[%clk 0:00:01]} 41. Qd1 {[%clk 0:00:12]}  Qxb2 {[%clk 0:00:02]} 42. Qe2 {[%clk 0:00:12]}  Qa1+ {[%clk 0:00:02]} 43. Kg2 {[%clk 0:00:12]}  g5 {[%clk 0:00:02]} 44. Qe6+ {[%clk 0:00:11]}  Kg7 {[%clk 0:00:02]} 45. Bd5 {[%clk 0:00:11]}  g4 {[%clk 0:00:01]} 46. Qxf5 {[%clk 0:00:10]}  h5 {[%clk 0:00:01]} 47. Qxh5 {[%clk 0:00:09]}  Qd4 {[%clk 0:00:01]} 48. Qf7+ {[%clk 0:00:08]}  Kh6 {[%clk 0:00:01]} 49. Qe6+ {[%clk 0:00:07]}  Kg5 {[%clk 0:00:01]} 50. Qe3+ {[%clk 0:00:07]} 1-0


[Site "https://www.chess.com"]